[Event "Gibraltar Junior Intl U16 2019"]
[Site "Caleta"]
[Date "2019.08.18"]
[Round "5.12"]
[White "Usharovsky, Ron"]
[Black "Bartelt, Max Peter"]
[Result "1-0"]
[ECO "C05"]
[WhiteElo "1670"]
[BlackElo "1803"]
[Annotator "NA"]
[PlyCount "65"]
[EventDate "2019.08.16"]
[EventType "swiss"]
[EventCountry "GGB"]
[SourceTitle "playchess.com"]
[Source "ChessBase"]
[SourceQuality "1"]
[TimeControl "6600+10"]

1. e4 {[%emt 0:00:00]} e6 {[%emt 0:00:00]} 2. d4 {[%emt 0:00:00]} d5 {[%emt 0:00:00]} 3. Nd2 {[%emt 0:00:02]} Nf6 {[%emt 0:00:02]} 4. Bd3 {[%emt 0:00:09]} c5 {[%emt 0:00:16]} 5. c3 {[%emt 0:00:04]} Nc6 {[%emt 0:00:07]} 6. Ngf3 {[%emt 0:00:22]} Be7 {[%emt 0:00:45]} 7. O-O {[%emt 0:00:29]} O-O {[%emt 0:00:05]} 8. dxc5 {[%emt 0:02:14]} Bxc5 {[%emt 0:00:19]} 9. e5 {[%emt 0:03:11]} Nd7 {[%emt 0:00:39]} 10. Nb3 {[%emt 0:00:49]} Bb6 {[%emt 0:02:42]} 11. Bxh7+ {[%emt 0:07:08]} Kxh7 {[%emt 0:14:04]} 12. Ng5+ {[%emt 0:00:21]} Kg6 {[%emt 0:00:01]} 13. Qd3+ {[%emt 0:01:05]} f5 {[%emt 0:00:12]} 14. Qg3 {[%emt 0:00:57]} Qe7 {[%emt 0:01:14]} 15. Nxe6+ {[%emt 0:21:17]} Kf7 {[%emt 0:00:22]} 16. Nxf8 {[%emt 0:00:58]} Kxf8 {[%emt 0:00:45]} 17. Re1 {[%emt 0:05:34]} Nc5 {[%emt 0:10:55]} 18. Be3 {[%emt 0:12:38]} Nxb3 {[%emt 0:10:19]} 19. axb3 {[%emt 0:00:51]} Bxe3 {[%emt 0:04:24]} 20. Rxe3 {[%emt 0:01:27]} Be6 {[%emt 0:00:47]} 21. Qg6 {[%emt 0:07:15]} Qf7 {[%emt 0:01:45]} 22. Qg5 {[%emt 0:03:21]} Ke8 {[%emt 0:03:44]} 23. Rg3 {[%emt 0:06:23]} Nxe5 {[%emt 0:03:20]} 24. Re1 {[%emt 0:04:17]} Nc6 {[%emt 0:03:51]} 25. Qxg7 {[%emt 0:01:26]} Kd7 {[%emt 0:03:31]} 26. Qh6 {[%emt 0:05:51]} Kd6 {[%emt 0:08:26]} 27. Rg7 {[%emt 0:00:45]} Qe8 {[%emt 0:00:13]} 28. Qf4+ {[%emt 0:04:59]} Kc5 {[%emt 0:00:02]} 29. Rxb7 {[%emt 0:01:50]} a5 {[%emt 0:02:20]} 30. b4+ {[%emt 0:00:29]} axb4 {[%emt 0:00:05]} 31. cxb4+ {[%emt 0:00:09]} Nxb4 {[%emt 0:00:04]} 32. Qxb4+ {[%emt 0:00:06]} Kc6 {[%emt 0:00:05]} 33. Qb6# {[%emt 0:00:07]} 1-0

[Event "Gibraltar Junior Intl U16 2019"]
[Site "Caleta"]
[Date "2019.08.18"]
[Round "5.13"]
[White "Gogia, Armaan"]
[Black "Nayak, Aurideep"]
[Result "1-0"]
[ECO "B42"]
[WhiteElo "1754"]
[BlackElo "1546"]
[Annotator "NA"]
[PlyCount "41"]
[EventDate "2019.08.16"]
[EventType "swiss"]
[EventCountry "GGB"]
[SourceTitle "playchess.com"]
[Source "ChessBase"]
[SourceQuality "1"]
[TimeControl "6600+10"]

1. e4 {[%emt 0:00:00]} c5 {[%emt 0:00:42]} 2. Ne2 {[%emt 0:00:00]} e6 {[%emt 0:00:15]} 3. d4 {[%emt 0:00:08]} cxd4 {[%emt 0:00:08]} 4. Nxd4 {[%emt 0:00:05]} a6 {[%emt 0:00:12]} 5. Bd3 {[%emt 0:00:04]} Qc7 {[%emt 0:00:06]} 6. O-O {[%emt 0:00:16]} Nc6 {[%emt 0:00:53]} 7. Nxc6 {[%emt 0:00:53]} bxc6 {[%emt 0:00:04]} 8. c4 {[%emt 0:00:31]} Nf6 {[%emt 0:01:01]} 9. Nc3 {[%emt 0:00:26]} Bb4 {[%emt 0:01:20]} 10. Be3 {[%emt 0:03:25]} Bxc3 {[%emt 0:07:58]} 11. bxc3 {[%emt 0:00:16]} Qa5 {[%emt 0:06:09]} 12. Qb3 {[%emt 0:04:00]} c5 {[%emt 0:01:32]} 13. e5 {[%emt 0:02:47]} Ng4 {[%emt 0:01:45]} 14. Be4 {[%emt 0:06:40]} Ra7 {[%emt 0:03:21]} 15. Qb8 {[%emt 0:01:57]} Qc7 {[%emt 0:01:46]} 16. Qxc7 {[%emt 0:00:14]} Rxc7 {[%emt 0:00:36]} 17. Bf4 {[%emt 0:00:01]} O-O {[%emt 0:05:14]} 18. Rab1 {[%emt 0:01:23]} f6 {[%emt 0:01:30]} 19. exf6 {[%emt 0:00:37]} e5 {[%emt 0:00:33]} 20. Bd5+ {[%emt 0:00:33]} Kh8 {[%emt 0:01:00]} 21. fxg7+ 1-0

[Event "Gibraltar Junior Intl U16 2019"]
[Site "Caleta"]
[Date "2019.08.18"]
[Round "5.14"]
[White "Hirst, Joe"]
[Black "Hernandez Tellez, Claudia"]
[Result "1-0"]
[ECO "B36"]
[WhiteElo "1639"]
[BlackElo "1711"]
[Annotator "NA"]
[PlyCount "108"]
[EventDate "2019.08.16"]
[EventType "swiss"]
[EventCountry "GGB"]
[SourceTitle "playchess.com"]
[Source "ChessBase"]
[SourceQuality "1"]
[TimeControl "6600+10"]

1. e4 {[%emt 0:00:00]} c5 {[%emt 0:00:00]} 2. Nf3 {[%emt 0:00:00]} Nc6 {[%emt 0:00:01]} 3. d4 {[%emt 0:00:02]} cxd4 {[%emt 0:00:05]} 4. Nxd4 {[%emt 0:00:07]} g6 {[%emt 0:00:10]} 5. c4 {[%emt 0:00:06]} Nf6 {[%emt 0:00:43]} 6. Nc3 {[%emt 0:00:12]} d6 {[%emt 0:00:25]} 7. Be2 {[%emt 0:00:11]} Nxd4 {[%emt 0:00:26]} 8. Qxd4 {[%emt 0:00:18]} Bg7 {[%emt 0:00:28]} 9. Be3 {[%emt 0:02:07]} O-O {[%emt 0:00:50]} 10. Qd2 {[%emt 0:01:13]} Be6 {[%emt 0:00:48]} 11. f3 {[%emt 0:01:14]} Qa5 {[%emt 0:02:35]} 12. a3 {[%emt 0:02:08]} Rfc8 {[%emt 0:02:14]} 13. Nd5 {[%emt 0:05:00]} Qxd2+ {[%emt 0:01:17]} 14. Bxd2 {[%emt 0:00:55]} Nxd5 {[%emt 0:01:25]} 15. exd5 {[%emt 0:01:56]} Bd7 {[%emt 0:01:46]} 16. Rb1 {[%emt 0:01:44]} Bf5 {[%emt 0:02:19]} 17. Ra1 {[%emt 0:00:59]} Bxb2 {[%emt 0:02:04]} 18. Ra2 {[%emt 0:01:19]} Bd4 {[%emt 0:02:08]} 19. a4 {[%emt 0:03:23]} b6 {[%emt 0:04:19]} 20. Bf4 {[%emt 0:04:34]} Rc5 {[%emt 0:03:15]} 21. Kd2 {[%emt 0:02:53]} Rb8 {[%emt 0:05:09]} 22. Bd3 {[%emt 0:01:18]} Bxd3 {[%emt 0:02:02]} 23. Kxd3 {[%emt 0:00:11]} Bf6 {[%emt 0:00:40]} 24. g4 {[%emt 0:01:41]} Rbc8 {[%emt 0:08:45]} 25. Rc1 {[%emt 0:01:54]} Kf8 {[%emt 0:01:13]} 26. g5 {[%emt 0:06:47]} Bg7 {[%emt 0:01:12]} 27. Rcc2 {[%emt 0:11:32]} Rb8 {[%emt 0:07:52]} 28. Ra3 {[%emt 0:03:58]} Ke8 {[%emt 0:02:22]} 29. Re2 {[%emt 0:12:49]} Kd7 {[%emt 0:01:13]} 30. Re4 {[%emt 0:01:01]} a6 {[%emt 0:06:03]} 31. Be3 {[%emt 0:02:17]} Rc7 {[%emt 0:00:49]} 32. Rb3 {[%emt 0:00:24]} Rcb7 {[%emt 0:00:35]} 33. Rh4 {[%emt 0:00:25]} Rh8 {[%emt 0:12:43]} 34. Rxb6 {[%emt 0:00:47]} Rxb6 {[%emt 0:00:06]} 35. Bxb6 {[%emt 0:00:12]} h5 {[%emt 0:00:55]} 36. gxh6 {[%emt 0:00:27]} Rxh6 {[%emt 0:00:33]} 37. Rxh6 {[%emt 0:00:56]} Bxh6 {[%emt 0:00:04]} 38. c5 {[%emt 0:06:53]} dxc5 {[%emt 0:01:24]} 39. Kc4 {[%emt 0:01:11]} Be3 {[%emt 0:07:10]} 40. Bxc5 {[%emt 0:03:03]} Bxc5 {[%emt 0:00:23]} 41. Kxc5 {[%emt 0:00:06]} Kc7 {[%emt 0:00:04]} 42. f4 {[%emt 0:01:02]} f6 {[%emt 0:05:43]} 43. h4 {[%emt 0:01:51]} f5 {[%emt 0:00:32]} 44. a5 {[%emt 0:00:41]} Kb7 {[%emt 0:02:20]} 45. d6 {[%emt 0:01:08]} e6 {[%emt 0:00:33]} 46. Kd4 {[%emt 0:01:38]} Kc6 {[%emt 0:02:33]} 47. Ke5 {[%emt 0:00:06]} Kd7 {[%emt 0:00:31]} 48. Kf6 {[%emt 0:00:09]} Kxd6 {[%emt 0:01:39]} 49. Kxg6 {[%emt 0:00:08]} e5 {[%emt 0:00:09]} 50. fxe5+ {[%emt 0:00:19]} Kxe5 {[%emt 0:00:08]} 51. h5 {[%emt 0:00:04]} f4 {[%emt 0:00:04]} 52. h6 {[%emt 0:00:05]} f3 {[%emt 0:00:09]} 53. h7 {[%emt 0:00:04]} f2 {[%emt 0:00:18]} 54. h8=Q+ {[%emt 0:00:11]} Kd5 {[%emt 0:00:08]} 1-0

[Event "Gibraltar Junior Intl U16 2019"]
[Site "Caleta"]
[Date "2019.08.18"]
[Round "5.15"]
[White "Greco, Joseph"]
[Black "Mendis, Vidura"]
[Result "1-0"]
[ECO "C01"]
[WhiteElo "1690"]
[BlackElo "1528"]
[Annotator "NA"]
[PlyCount "89"]
[EventDate "2019.08.16"]
[EventType "swiss"]
[EventCountry "GGB"]
[SourceTitle "playchess.com"]
[Source "ChessBase"]
[SourceQuality "1"]
[TimeControl "6600+10"]

1. e4 {[%emt 0:00:00]} e6 {[%emt 0:00:00]} 2. d4 {[%emt 0:00:26]} d5 {[%emt 0:00:10]} 3. exd5 {[%emt 0:00:07]} exd5 {[%emt 0:00:09]} 4. g3 {[%emt 0:00:45]} Nf6 {[%emt 0:00:11]} 5. Bg2 {[%emt 0:00:11]} Bd6 {[%emt 0:00:29]} 6. Ne2 {[%emt 0:00:31]} O-O {[%emt 0:00:27]} 7. O-O {[%emt 0:00:17]} Bf5 {[%emt 0:00:23]} 8. c4 {[%emt 0:04:40]} Be4 {[%emt 0:05:27]} 9. Bxe4 {[%emt 0:02:49]} dxe4 {[%emt 0:02:18]} 10. Nec3 {[%emt 0:03:51]} Qd7 {[%emt 0:00:47]} 11. Nd2 {[%emt 0:05:44]} Re8 {[%emt 0:03:38]} 12. Re1 {[%emt 0:00:44]} Qf5 {[%emt 0:04:20]} 13. Ndxe4 {[%emt 0:08:42]} Nxe4 {[%emt 0:02:31]} 14. f3 {[%emt 0:00:18]} Nf6 {[%emt 0:00:35]} 15. Rxe8+ {[%emt 0:01:25]} Nxe8 {[%emt 0:00:05]} 16. c5 {[%emt 0:01:20]} Bf8 {[%emt 0:00:33]} 17. g4 {[%emt 0:00:45]} Qd7 {[%emt 0:00:50]} 18. Be3 {[%emt 0:01:07]} Nc6 {[%emt 0:00:26]} 19. Qb3 {[%emt 0:01:27]} b6 {[%emt 0:01:46]} 20. Rd1 {[%emt 0:03:30]} Qe7 {[%emt 0:02:40]} 21. Kf2 {[%emt 0:01:16]} Qh4+ {[%emt 0:00:28]} 22. Kg1 {[%emt 0:00:10]} Na5 {[%emt 0:01:00]} 23. Qa4 {[%emt 0:00:43]} Rd8 {[%emt 0:00:41]} 24. Ne4 {[%emt 0:00:17]} Qe7 {[%emt 0:01:41]} 25. b4 {[%emt 0:05:15]} Nc4 {[%emt 0:14:11]} 26. Bg5 {[%emt 0:01:31]} f6 {[%emt 0:00:16]} 27. Bc1 {[%emt 0:03:37]} Qd7 {[%emt 0:02:46]} 28. Qa6 {[%emt 0:04:51]} Ne5 {[%emt 0:01:13]} 29. Kf2 {[%emt 0:00:22]} Nc6 {[%emt 0:01:07]} 30. Qc4+ {[%emt 0:01:16]} Qd5 {[%emt 0:00:32]} 31. Qc3 {[%emt 0:01:08]} bxc5 {[%emt 0:01:05]} 32. bxc5 {[%emt 0:01:40]} Qxa2+ {[%emt 0:00:28]} 33. Rd2 {[%emt 0:00:22]} Qa4 {[%emt 0:00:20]} 34. d5 {[%emt 0:02:00]} Ne5 {[%emt 0:00:33]} 35. g5 {[%emt 0:03:17]} fxg5 {[%emt 0:01:41]} 36. Qxe5 {[%emt 0:00:12]} Qc4 {[%emt 0:05:55]} 37. Qe6+ {[%emt 0:10:30]} Kh8 {[%emt 0:00:05]} 38. Ba3 {[%emt 0:04:48]} Rb8 {[%emt 0:04:26]} 39. Qf5 {[%emt 0:13:05]} Nf6 {[%emt 0:03:10]} 40. d6 {[%emt 0:02:04]} cxd6 {[%emt 0:10:55]} 41. cxd6 {[%emt 0:00:21]} Rb3 {[%emt 0:00:19]} 42. d7 {[%emt 0:04:21]} Nxd7 {[%emt 0:01:51]} 43. Rxd7 {[%emt 0:01:03]} Rxa3 {[%emt 0:01:11]} 44. Qxf8+ {[%emt 0:00:20]} Qg8 {[%emt 0:00:03]} 45. Rd8 {[%emt 0:00:36]} 1-0

[Event "Gibraltar Junior Intl U16 2019"]
[Site "Caleta"]
[Date "2019.08.18"]
[Round "5.16"]
[White "Khan, Samir"]
[Black "Aubury, Benjamin"]
[Result "0-1"]
[ECO "B10"]
[WhiteElo "1282"]
[BlackElo "1686"]
[Annotator "NA"]
[PlyCount "128"]
[EventDate "2019.08.16"]
[EventType "swiss"]
[EventCountry "GGB"]
[SourceTitle "playchess.com"]
[Source "ChessBase"]
[SourceQuality "1"]
[TimeControl "6600+10"]

1. e4 {[%emt 0:00:00]} c6 {[%emt 0:00:05]} 2. d3 {[%emt 0:00:00]} d5 {[%emt 0:00:14]} 3. Nd2 {[%emt 0:00:05]} g6 {[%emt 0:00:15]} 4. Ngf3 {[%emt 0:00:16]} Bg7 {[%emt 0:00:30]} 5. g3 {[%emt 0:00:16]} e5 {[%emt 0:00:34]} 6. Bg2 {[%emt 0:00:28]} Ne7 {[%emt 0:01:22]} 7. O-O {[%emt 0:00:33]} O-O {[%emt 0:02:46]} 8. Re1 {[%emt 0:01:00]} d4 {[%emt 0:00:24]} 9. h3 {[%emt 0:02:59]} c5 {[%emt 0:05:33]} 10. Nf1 {[%emt 0:00:47]} Nbc6 {[%emt 0:01:55]} 11. N1h2 {[%emt 0:00:13]} b5 {[%emt 0:01:44]} 12. h4 {[%emt 0:00:33]} h5 {[%emt 0:01:05]} 13. Bg5 {[%emt 0:00:15]} f6 {[%emt 0:01:08]} 14. Bd2 {[%emt 0:00:16]} c4 {[%emt 0:00:49]} 15. Qc1 {[%emt 0:00:27]} Kh7 {[%emt 0:00:51]} 16. a3 {[%emt 0:01:15]} Be6 {[%emt 0:00:55]} 17. Kh1 {[%emt 0:04:59]} Rc8 {[%emt 0:02:28]} 18. Ng1 {[%emt 0:00:21]} cxd3 {[%emt 0:00:39]} 19. cxd3 {[%emt 0:00:37]} Nb4 {[%emt 0:01:27]} 20. Qb1 {[%emt 0:01:16]} Nc2 {[%emt 0:00:33]} 21. Bh3 {[%emt 0:10:25]} Bxh3 {[%emt 0:01:45]} 22. Nxh3 {[%emt 0:00:05]} Nxe1 {[%emt 0:01:05]} 23. Qxe1 {[%emt 0:00:06]} Rc2 {[%emt 0:00:43]} 24. Qd1 {[%emt 0:04:04]} Qc8 {[%emt 0:00:55]} 25. Rb1 {[%emt 0:01:41]} Rxd2 {[%emt 0:01:04]} 26. Qxd2 {[%emt 0:01:10]} Qxh3 {[%emt 0:00:11]} 27. Qa5 {[%emt 0:04:28]} Qd7 {[%emt 0:01:33]} 28. Kg2 {[%emt 0:00:47]} Rc8 {[%emt 0:01:10]} 29. Qd2 {[%emt 0:00:33]} Qc7 {[%emt 0:01:10]} 30. Rf1 {[%emt 0:00:41]} Bh6 {[%emt 0:00:56]} 31. Qb4 {[%emt 0:00:19]} Qc5 {[%emt 0:00:25]} 32. Qa5 {[%emt 0:00:38]} Qb6 {[%emt 0:15:39]} 33. Qb4 {[%emt 0:02:40]} Bf8 {[%emt 0:09:11]} 34. Qd2 {[%emt 0:03:05]} Qc5 {[%emt 0:04:32]} 35. Qe2 {[%emt 0:03:08]} Qc2 {[%emt 0:02:47]} 36. Qf3 {[%emt 0:00:20]} f5 {[%emt 0:00:39]} 37. exf5 {[%emt 0:02:08]} Nxf5 {[%emt 0:01:38]} 38. Qe4 {[%emt 0:04:42]} Qc6 {[%emt 0:00:36]} 39. Qxc6 {[%emt 0:00:57]} Rxc6 {[%emt 0:00:17]} 40. Nf3 {[%emt 0:00:35]} Bd6 {[%emt 0:00:30]} 41. Re1 {[%emt 0:00:34]} Rc2 {[%emt 0:01:56]} 42. b4 {[%emt 0:03:52]} Ne3+ {[%emt 0:00:29]} 43. Kg1 {[%emt 0:00:47]} Ng4 {[%emt 0:00:17]} 44. Ng5+ {[%emt 0:02:00]} Kg7 {[%emt 0:00:19]} 45. Ne4 {[%emt 0:02:22]} Be7 {[%emt 0:00:45]} 46. Ra1 {[%emt 0:01:42]} Nf6 {[%emt 0:01:27]} 47. Ng5 {[%emt 0:01:05]} Rc3 {[%emt 0:01:40]} 48. Re1 {[%emt 0:01:55]} Bd6 {[%emt 0:03:20]} 49. Nf3 {[%emt 0:02:05]} Rxd3 {[%emt 0:00:49]} 50. Nxe5 {[%emt 0:00:43]} Bxe5 {[%emt 0:00:17]} 51. Rxe5 {[%emt 0:00:05]} Rxa3 {[%emt 0:00:21]} 52. Rxb5 {[%emt 0:00:35]} d3 {[%emt 0:00:15]} 53. Rb7+ {[%emt 0:00:23]} Kh6 {[%emt 0:00:24]} 54. g4 {[%emt 0:06:13]} hxg4 {[%emt 0:00:46]} 55. h5 {[%emt 0:00:15]} gxh5 {[%emt 0:00:14]} 56. Rf7 {[%emt 0:00:19]} d2 {[%emt 0:01:08]} 57. Rxf6+ {[%emt 0:00:35]} Kg5 {[%emt 0:00:08]} 58. Rd6 {[%emt 0:00:37]} Ra1+ {[%emt 0:00:05]} 59. Kg2 {[%emt 0:00:24]} d1=Q {[%emt 0:00:13]} 60. Rxd1 {[%emt 0:00:06]} Rxd1 {[%emt 0:00:10]} 61. b5 {[%emt 0:00:16]} Rb1 {[%emt 0:00:13]} 62. Kh2 {[%emt 0:00:27]} Rxb5 {[%emt 0:00:05]} 63. f3 {[%emt 0:00:28]} Rb2+ {[%emt 0:00:34]} 64. Kg3 {[%emt 0:00:53]} h4# {[%emt 0:00:08]} 0-1

[Event "Gibraltar Junior Intl U16 2019"]
[Site "Caleta"]
[Date "2019.08.18"]
[Round "5.17"]
[White "Dharmasena, Gavith"]
[Black "Hussain, Adam"]
[Result "1/2-1/2"]
[ECO "C01"]
[WhiteElo "1585"]
[BlackElo "1515"]
[Annotator "NA"]
[PlyCount "124"]
[EventDate "2019.08.16"]
[EventType "swiss"]
[EventCountry "GGB"]
[SourceTitle "playchess.com"]
[Source "ChessBase"]
[SourceQuality "1"]
[TimeControl "6600+10"]

1. e4 {[%emt 0:02:26]} e6 {[%emt 0:00:02]} 2. d4 {[%emt 0:00:07]} d5 {[%emt 0:00:02]} 3. exd5 {[%emt 0:00:05]} exd5 {[%emt 0:00:03]} 4. c4 {[%emt 0:00:09]} Nf6 {[%emt 0:00:03]} 5. Bd3 {[%emt 0:00:02]} Be7 {[%emt 0:00:25]} 6. Ne2 {[%emt 0:00:08]} O-O {[%emt 0:00:14]} 7. Nbc3 {[%emt 0:00:23]} c6 {[%emt 0:00:15]} 8. h3 {[%emt 0:00:11]} Nbd7 {[%emt 0:00:24]} 9. O-O {[%emt 0:00:07]} dxc4 {[%emt 0:00:08]} 10. Bxc4 {[%emt 0:00:10]} Nb6 {[%emt 0:00:05]} 11. Bd3 {[%emt 0:00:05]} Nbd5 {[%emt 0:00:25]} 12. Nf4 {[%emt 0:03:44]} Nxf4 {[%emt 0:00:20]} 13. Bxf4 {[%emt 0:00:09]} Be6 {[%emt 0:01:10]} 14. Re1 {[%emt 0:00:45]} Re8 {[%emt 0:00:11]} 15. Be5 {[%emt 0:06:02]} Qd7 {[%emt 0:00:10]} 16. Qf3 {[%emt 0:00:55]} Bd5 {[%emt 0:05:21]} 17. Nxd5 {[%emt 0:00:51]} Qxd5 {[%emt 0:00:24]} 18. Qg3 {[%emt 0:03:50]} Rad8 {[%emt 0:04:36]} 19. Rad1 {[%emt 0:04:05]} Bd6 {[%emt 0:01:49]} 20. Qh4 {[%emt 0:02:14]} Qe6 {[%emt 0:09:02]} 21. Re3 {[%emt 0:01:38]} h6 {[%emt 0:01:57]} 22. Rg3 {[%emt 0:06:07]} Bxe5 {[%emt 0:02:53]} 23. dxe5 {[%emt 0:00:06]} Nd7 {[%emt 0:05:16]} 24. f4 {[%emt 0:00:54]} Nc5 {[%emt 0:07:21]} 25. Bh7+ {[%emt 0:00:28]} Kxh7 {[%emt 0:00:05]} 26. Rxd8 {[%emt 0:00:27]} Rxd8 {[%emt 0:03:03]} 27. Qxd8 {[%emt 0:00:06]} Qf5 {[%emt 0:02:55]} 28. Qd4 {[%emt 0:03:20]} b6 {[%emt 0:00:33]} 29. b4 {[%emt 0:00:12]} Ne6 {[%emt 0:01:20]} 30. Qd3 {[%emt 0:01:02]} Qxd3 {[%emt 0:00:09]} 31. Rxd3 {[%emt 0:00:03]} Nxf4 {[%emt 0:00:07]} 32. Rd7 {[%emt 0:00:06]} Kg6 {[%emt 0:00:35]} 33. a3 {[%emt 0:04:17]} Ne6 {[%emt 0:05:25]} 34. Rxa7 {[%emt 0:00:15]} c5 {[%emt 0:00:03]} 35. Rb7 {[%emt 0:00:59]} Kf5 {[%emt 0:01:21]} 36. Rxf7+ {[%emt 0:00:43]} Kxe5 {[%emt 0:00:05]} 37. bxc5 {[%emt 0:00:20]} bxc5 {[%emt 0:00:25]} 38. a4 {[%emt 0:00:26]} c4 {[%emt 0:00:04]} 39. a5 {[%emt 0:00:20]} c3 {[%emt 0:00:18]} 40. a6 {[%emt 0:00:05]} c2 {[%emt 0:00:39]} 41. Rf1 {[%emt 0:00:04]} Nc7 {[%emt 0:00:17]} 42. Rc1 {[%emt 0:03:45]} Nxa6 {[%emt 0:00:14]} 43. Rxc2 {[%emt 0:00:11]} Nb4 {[%emt 0:00:15]} 44. Rf2 {[%emt 0:00:12]} Ke6 {[%emt 0:00:12]} 45. Rf3 {[%emt 0:00:46]} Nd5 {[%emt 0:00:11]} 46. Kf2 {[%emt 0:00:10]} Nf6 {[%emt 0:00:27]} 47. Kg3 {[%emt 0:00:27]} Ne4+ {[%emt 0:00:40]} 48. Kf4 {[%emt 0:01:19]} Ng5 {[%emt 0:00:20]} 49. Ra3 {[%emt 0:00:36]} Kf6 {[%emt 0:00:21]} 50. Ra6+ {[%emt 0:00:26]} Ne6+ {[%emt 0:00:34]} 51. Kg4 {[%emt 0:00:38]} g6 {[%emt 0:00:45]} 52. h4 {[%emt 0:00:40]} Ke5 {[%emt 0:00:58]} 53. g3 {[%emt 0:01:21]} Kf6 {[%emt 0:00:59]} 54. h5 {[%emt 0:01:27]} g5 {[%emt 0:00:23]} 55. Kf3 {[%emt 0:00:29]} Ke5 {[%emt 0:00:32]} 56. Ra5+ {[%emt 0:00:09]} Kf6 {[%emt 0:00:16]} 57. Ke4 {[%emt 0:00:27]} Nc7 {[%emt 0:02:10]} 58. Ra7 {[%emt 0:01:53]} Nb5 {[%emt 0:00:15]} 59. Rh7 {[%emt 0:00:07]} Nd6+ {[%emt 0:00:05]} 60. Kd5 {[%emt 0:00:24]} Nf5 {[%emt 0:00:17]} 61. Kc6 {[%emt 0:04:05]} Nxg3 {[%emt 0:01:30]} 62. Rxh6+ {[%emt 0:00:05]} Ke5 {[%emt 0:00:02]} 1/2-1/2

[Event "Gibraltar Junior Intl U16 2019"]
[Site "Caleta"]
[Date "2019.08.18"]
[Round "5.18"]
[White "Guerreiro, Jose Velho"]
[Black "Gutierrez Lupion, Nuria"]
[Result "0-1"]
[ECO "D56"]
[WhiteElo "1513"]
[BlackElo "1712"]
[Annotator "NA"]
[PlyCount "106"]
[EventDate "2019.08.16"]
[EventType "swiss"]
[EventCountry "GGB"]
[SourceTitle "playchess.com"]
[Source "ChessBase"]
[SourceQuality "1"]
[TimeControl "6600+10"]

1. d4 {[%emt 0:00:00]} Nf6 {[%emt 0:00:00]} 2. c4 {[%emt 0:00:18]} e6 {[%emt 0:00:11]} 3. Nc3 {[%emt 0:00:07]} d5 {[%emt 0:01:03]} 4. Nf3 {[%emt 0:00:06]} Be7 {[%emt 0:00:56]} 5. Bg5 {[%emt 0:01:22]} h6 {[%emt 0:00:27]} 6. Bh4 {[%emt 0:00:10]} Nbd7 {[%emt 0:02:05]} 7. e3 {[%emt 0:00:42]} O-O {[%emt 0:04:04]} 8. cxd5 {[%emt 0:01:52]} Nxd5 {[%emt 0:01:39]} 9. Nxd5 {[%emt 0:01:58]} exd5 {[%emt 0:00:17]} 10. Bg3 {[%emt 0:01:15]} Nf6 {[%emt 0:02:17]} 11. Bd3 {[%emt 0:02:28]} Bg4 {[%emt 0:01:52]} 12. O-O {[%emt 0:01:53]} Ne4 {[%emt 0:01:31]} 13. Bf4 {[%emt 0:04:42]} Bd6 {[%emt 0:06:51]} 14. Bxd6 {[%emt 0:01:20]} Qxd6 {[%emt 0:00:26]} 15. h3 {[%emt 0:01:27]} Bxf3 {[%emt 0:00:47]} 16. gxf3 {[%emt 0:01:18]} Ng5 {[%emt 0:01:00]} 17. h4 {[%emt 0:02:09]} Nh7 {[%emt 0:01:33]} 18. Kh1 {[%emt 0:02:54]} Qf6 {[%emt 0:01:08]} 19. Bxh7+ {[%emt 0:00:46]} Kxh7 {[%emt 0:00:19]} 20. Qc2+ {[%emt 0:01:06]} Kg8 {[%emt 0:01:14]} 21. Qxc7 {[%emt 0:00:56]} Qxf3+ {[%emt 0:05:46]} 22. Kg1 {[%emt 0:00:41]} Rae8 {[%emt 0:02:43]} 23. Qg3 {[%emt 0:07:53]} Rxe3 {[%emt 0:09:53]} 24. Qxf3 {[%emt 0:00:45]} Rxf3 {[%emt 0:00:09]} 25. Rfe1 {[%emt 0:00:41]} Rf4 {[%emt 0:12:19]} 26. Rad1 {[%emt 0:00:37]} Re4 {[%emt 0:00:45]} 27. Rxe4 {[%emt 0:01:37]} dxe4 {[%emt 0:00:07]} 28. d5 {[%emt 0:00:08]} f5 {[%emt 0:01:56]} 29. h5 {[%emt 0:00:41]} Kf7 {[%emt 0:01:23]} 30. Kg2 {[%emt 0:00:17]} Kf6 {[%emt 0:00:42]} 31. Kg3 {[%emt 0:00:08]} Ke5 {[%emt 0:01:25]} 32. d6 {[%emt 0:00:48]} f4+ {[%emt 0:03:00]} 33. Kg4 {[%emt 0:00:56]} Rd8 {[%emt 0:02:37]} 34. d7 {[%emt 0:00:41]} e3 {[%emt 0:01:31]} 35. fxe3 {[%emt 0:01:37]} fxe3 {[%emt 0:00:10]} 36. Kf3 {[%emt 0:00:41]} Ke6 {[%emt 0:00:08]} 37. Rg1 {[%emt 0:05:26]} Rxd7 {[%emt 0:00:23]} 38. Kxe3 {[%emt 0:00:21]} Kf6 {[%emt 0:01:26]} 39. Rg6+ {[%emt 0:01:55]} Kf7 {[%emt 0:00:33]} 40. Rg4 {[%emt 0:02:51]} Rd5 {[%emt 0:02:51]} 41. Rf4+ {[%emt 0:02:47]} Ke6 {[%emt 0:00:55]} 42. Rh4 {[%emt 0:01:55]} Re5+ {[%emt 0:01:24]} 43. Kf3 {[%emt 0:00:57]} Kf6 {[%emt 0:00:43]} 44. a4 {[%emt 0:01:44]} b6 {[%emt 0:03:45]} 45. b3 {[%emt 0:00:40]} Rf5+ {[%emt 0:00:47]} 46. Kg3 {[%emt 0:02:17]} Kg5 {[%emt 0:02:00]} 47. Rg4+ {[%emt 0:00:36]} Kxh5 {[%emt 0:00:21]} 48. Rxg7 {[%emt 0:01:24]} Rg5+ {[%emt 0:00:12]} 49. Rxg5+ {[%emt 0:00:12]} Kxg5 {[%emt 0:00:13]} 50. Kh3 {[%emt 0:00:18]} Kf4 {[%emt 0:00:15]} 51. Kh4 {[%emt 0:00:05]} Ke4 {[%emt 0:00:13]} 52. Kh5 {[%emt 0:00:07]} Kd4 {[%emt 0:00:07]} 53. Kxh6 {[%emt 0:00:06]} Kc3 {[%emt 0:00:09]} 0-1

[Event "Gibraltar Junior Intl U16 2019"]
[Site "Caleta"]
[Date "2019.08.18"]
[Round "5.19"]
[White "Guilfanov, Raphael"]
[Black "Patel, Devan"]
[Result "0-1"]
[ECO "D02"]
[WhiteElo "1493"]
[BlackElo "1659"]
[Annotator "NA"]
[PlyCount "64"]
[EventDate "2019.08.16"]
[EventType "swiss"]
[EventCountry "GGB"]
[SourceTitle "playchess.com"]
[Source "ChessBase"]
[SourceQuality "1"]
[TimeControl "6600+10"]

1. d4 {[%emt 0:00:00]} d5 {[%emt 0:00:00]} 2. Bf4 {[%emt 0:00:00]} Nf6 {[%emt 0:00:00]} 3. e3 {[%emt 0:00:12]} c5 {[%emt 0:00:00]} 4. c3 {[%emt 0:00:22]} Nc6 {[%emt 0:00:00]} 5. Nf3 {[%emt 0:00:18]} Qb6 {[%emt 0:00:05]} 6. Qc2 {[%emt 0:00:15]} Bf5 {[%emt 0:00:08]} 7. Qb3 {[%emt 0:02:09]} c4 {[%emt 0:00:09]} 8. Qxb6 {[%emt 0:00:57]} axb6 {[%emt 0:00:00]} 9. Nbd2 {[%emt 0:00:38]} b5 {[%emt 0:09:03]} 10. Be2 {[%emt 0:00:23]} e6 {[%emt 0:01:36]} 11. Ne5 {[%emt 0:04:02]} Nxe5 {[%emt 0:01:09]} 12. Bxe5 {[%emt 0:00:21]} Nd7 {[%emt 0:01:31]} 13. Bg3 {[%emt 0:01:36]} Be7 {[%emt 0:01:56]} 14. O-O {[%emt 0:00:54]} O-O {[%emt 0:02:42]} 15. a3 {[%emt 0:02:43]} Nb6 {[%emt 0:01:45]} 16. f3 {[%emt 0:02:02]} Ra7 {[%emt 0:01:43]} 17. e4 {[%emt 0:01:39]} Bg6 {[%emt 0:00:16]} 18. Ra2 {[%emt 0:03:06]} Rfa8 {[%emt 0:00:43]} 19. Re1 {[%emt 0:03:38]} Kf8 {[%emt 0:05:47]} 20. Bd1 {[%emt 0:03:45]} f6 {[%emt 0:05:32]} 21. Re2 {[%emt 0:09:36]} Nc8 {[%emt 0:00:39]} 22. Bc2 {[%emt 0:01:03]} Kf7 {[%emt 0:01:17]} 23. Ra1 {[%emt 0:00:45]} b4 {[%emt 0:03:05]} 24. Rae1 {[%emt 0:04:01]} bxa3 {[%emt 0:01:36]} 25. bxa3 {[%emt 0:00:22]} Rxa3 {[%emt 0:00:12]} 26. Re3 {[%emt 0:06:14]} Ra2 {[%emt 0:03:11]} 27. Rc1 {[%emt 0:00:50]} Ba3 {[%emt 0:00:59]} 28. Rb1 {[%emt 0:01:26]} Rxc2 {[%emt 0:02:45]} 29. Rxb7+ {[%emt 0:00:59]} Kf8 {[%emt 0:01:29]} 30. exd5 {[%emt 0:02:52]} Rxd2 {[%emt 0:02:22]} 31. Rxe6 {[%emt 0:00:07]} Rd1+ {[%emt 0:01:18]} 32. Kf2 {[%emt 0:00:31]} Bf7 {[%emt 0:07:26]} 0-1